Cogmind - Beta 16.1 @@@ ROGUE MODE // 2026.04.10 @ 11:59:15 Player: Lazz Result: Destroyed by H-66 Slayer with Heavy Assault Rifle Performance ------------- Evolutions (5) 2500 Regions Visited (5) 1000 Robots Destroyed (42) 210 Value Destroyed (1298) 1298 Prototype IDs (15) 300 Alien Tech Used (0) 0 Bonus (988) 988 TOTAL SCORE: 6296 Bonus ------- Follower Combat Kills 188 Registered with UFD 300 Met Optimus in HQ 500 Cogmind --------- Core Integrity 0/1000 Matter 300/300 Energy 99/100 System Corruption 23% Temperature Cool (0) Movement Core (50) Location -5/Factory Parts ------- > --- POWER (2) -------- (None) > --- PROPULSION (5) --- (None) > --- UTILITY (8) ------ Improved Signal Interpreter Terrain Scan Processor Improved Target Analyzer Armor Integrity Analyzer Power Shielding > --- WEAPON (2) ------- (None) > --- INVENTORY (5) ---- Advanced Cooling System Kinecellerator Wave Gun Mining Laser Power Sword Peak State ------------ > --- POWER ------------ Neutrino Core Neutrino Core > --- PROPULSION ------- Improved Treads Carbon-fiber Leg Carbon-fiber Leg Flexi-carbon Leg Armored Leg > --- UTILITY ---------- Large Storage Unit Machine Analyzer Enhanced Optical Array Terrain Scan Processor Advanced Salvage Targeting Computer Advanced Salvage Targeting Computer Armor Integrity Analyzer Improved Medium Armor Plating > --- WEAPON ----------- Voltaic Drivehammer Power Sword > --- INVENTORY -------- Wheel Advanced Cooling System Advanced Cooling System Medium Matter Pod Improved Sensor Array Improved Signal Interpreter Kinecellerator Power Shielding Wave Gun Phase Cannon Phase Cannon Heavy Plasma Cannon KE Penetrator Mining Laser [Rating: 81] Favorites ----------- Power Light Angular Momentum Engine Engine Light Angular Momentum Engine Power Core Neutrino Core Propulsion Light Treads Treads Light Treads Leg Flexi-carbon Leg Wheel Wheel Hover Unit Airjet Flight Unit VTOL Module Utility Seismic Detector Device Seismic Detector Storage Large Storage Unit Processor Advanced Salvage Targeting Computer Protection Improved Medium Armor Plating Weapon Makeshift Hammer Energy Cannon Heavy Plasma Cannon Ballistic Gun Light Assault Rifle Ballistic Cannon Gauss Cannon Launcher Long-range Missile Launcher Special Weapon Voltaic Drivehammer Impact Weapon Makeshift Hammer Slashing Weapon Power Sword Build | -11 -10 -10 -9 -6 -5 ------- Run | Yrd Mat Sub Scr Fac Fac Slots Evolved 10 | . . . . 8 2 Power 1 | . . . . 1 . Propulsion 3 | . . . . 2 1 Utility 6 | . . . . 5 1 Weapon . | . . . . . . Parts Attached 63 | 7 . 2 8 17 29 Power 8 | 1 . . 2 1 4 Engine 4 | 1 . . 2 . 1 Core 4 | . . . . 1 3 Reactor . | . . . . . . Propulsion 22 | 2 . . 3 6 11 Treads 6 | 2 . . 1 2 1 Leg 9 | . . . . 2 7 Wheel 5 | . . . 2 . 3 Hover 1 | . . . . 1 . Flight 1 | . . . . 1 . Utility 18 | 2 . . 1 5 10 Device 4 | 1 . . . 2 1 Storage 3 | 1 . . 1 1 . Processor 9 | . . . . 1 8 Hackware . | . . . . . . Protection 2 | . . . . 1 1 Artifact . | . . . . . . Weapon 15 | 2 . 2 2 5 4 Energy Gun . | . . . . . . Energy Cannon 2 | . . . . . 2 Ballistic Gun 7 | 2 . 1 1 1 2 Ballistic Cannon 1 | . . . . 1 . Launcher 2 | . . . . 2 . Special Weapon 1 | . . . 1 . . Impact Weapon 1 | . . 1 . . . Slashing Weapon 1 | . . . . 1 . Piercing Weapon . | . . . . . . Special Melee Weapon . | . . . . . . Unidentified Prototypes . | . . . . . . Corrupted Parts 1 | . . . . . 1 System Corruption 10 | . . . . . 10 Parts Lost 41 | . . . . 15 26 Power 6 | . . . . 2 4 Propulsion 20 | . . . . 7 13 Utility 7 | . . . . 2 5 Weapon 8 | . . . . 4 4 Highest Loss Streak 11 | . . . . 11 11 To Critical Strikes . | . . . . . . Average Backups 9 | 1 7 8 10 8 10 Power . | . . . . . . Propulsion 1 | . 1 1 2 . . Utility 2 | . 2 3 2 1 4 Weapon 5 | 1 3 4 5 5 5 Tool/Special . | . . . . . . Unused Backups 13 | . . 1 4 . 8 Power . | . . . . . . Propulsion 1 | . . . . . 1 Utility 6 | . . . 2 . 4 Weapon 6 | . . 1 2 . 3 Tool/Special . | . . . . . . Average Slot Usage (%) 90 | . 100 100 99 40 79 Engine 10 | . 14 14 14 1 . Core 1 | . . . . . 5 Treads 17 | . 28 28 22 4 . Leg 3 | . . . . 1 16 Wheel 3 | . . . 5 4 . Device 10 | . 14 14 13 7 . Storage 11 | . 14 14 14 6 4 Processor 6 | . . . . . 31 Ballistic Gun 12 | . 28 23 13 2 2 Impact Weapon 8 | . . 4 14 3 . Peak Build Rating 81 | 7 7 10 28 53 81 Average Rating 24 | 5 7 7 18 26 60 On Entrance 12 | . 7 7 10 28 22 Avg Prop Armor Cover (%) 9 | . . . . 13 6 Naked Turns . | . . . . . . Heaviest Build 71 | 14 14 15 46 55 71 Greatest Support 66 | 40 40 40 48 40 66 Greatest Overweight (x) 10 | . . . 1 10 9 Average Overweight (x) . | . . . . 2 . Largest Inventory Capacity 15 | 8 8 8 15 15 15 Average Capacity 11 | 7 8 8 11 15 14 Most Carried 15 | 4 8 8 15 14 15 Average Carried 9 | 1 7 7 11 8 10 Final Capacity 15 | 8 8 8 15 15 5 Final Carried 15 | 4 8 8 15 5 5 Class Distribution -------------------- 85% | Mutant 13% | Scavenger-Mutant Dominant Class ---------------- Mutant | -10/Materials Mutant | -10/Subcaves Mutant | -9/Scraptown Mutant | -6/Factory Scavenger-Mutant | -5/Factory Resources | -11 -10 -10 -9 -6 -5 ----------- Run | Yrd Mat Sub Scr Fac Fac Matter Collected 1362 | 407 33 74 106 180 562 Remotely . | . . . . . . Salvage Created 1705 | 183 33 160 . 248 1081 Parts 88 | 17 1 9 . 12 49 Haulers Intercepted . | . . . . . . Recyclers Shooed 6 | 1 . . . . 5 Parts Field Recycled . | . . . . . . Retrieved Matter . | . . . . . . Parts Self-Destructed 12 | . . 12 . . . Prevented . | . . . . . . Parts Restored . | . . . . . . Kills | -11 -10 -10 -9 -6 -5 ------- Run | Yrd Mat Sub Scr Fac Fac Combat Hostiles Destroyed 24 | . 1 5 . 7 11 Melee 2 | . . . . . 2 Guns 13 | . 1 5 . 4 3 Cannons 2 | . . . . . 2 AOE 6 | . . . . 3 3 Classes Destroyed 14 | 3 1 2 . 3 5 Worker 7 | 1 . . . 1 5 Builder 1 | . . . . 1 . Tunneler 4 | 4 . . . . . Recycler 3 | 1 . . . . 2 Mechanic 1 | . . . . . 1 Operator 1 | . . . . . 1 Watcher 1 | . . . . . 1 Swarmer 5 | . . 3 . 2 . Grunt 10 | . 1 . . 3 6 Brawler 1 | . . . . 1 . Sentry 2 | . . . . . 2 Hunter 1 | . . . . 1 . Programmer 3 | . . . . . 3 Subdweller 2 | . . 2 . . . Best Kill Streak 7 | 5 1 3 . 6 7 Combat Bots Only 6 | . 1 3 . 6 4 Max Kills in Single Turn 4 | 1 1 2 . 3 4 Gunslinging 1 | . . 1 . . . Exploded 3 | . . . . 3 2 Melee 1 | . . . . . 1 Uniques/NPCs Destroyed . | . . . . . . Combat | -11 -10 -10 -9 -6 -5 -------- Run | Yrd Mat Sub Scr Fac Fac Hostile Shots Fired 471 | . 10 24 . 155 282 Missed 130 | . 1 7 . 34 88 Hits 341 | . 9 17 . 121 194 Melee 15 | . . . . 15 . Projectile 326 | . 9 17 . 106 194 AOE 1 | . . . . . 1 Critical Strikes 16 | . . 2 . 4 10 Damage Taken 6347 | . 74 320 . 2353 3600 Core 1678 | . 6 38 . 634 1000 Absorbed by Shields . | . . . . . . Redirected to Shielding 8 | . . . . . 8 Core Remaining (%) 69 | 100 . . 82 25 . Volleys Fired 93 | 13 6 16 . 22 36 Largest 2 | 2 2 2 . 2 2 Hottest 90 | 40 40 40 . 82 90 Shots Fired 145 | 26 12 32 . 32 43 Gun 124 | 26 12 32 . 21 33 Cannon 17 | . . . . 9 8 Launcher 2 | . . . . 2 . Special 2 | . . . . . 2 Kinetic 133 | 26 12 32 . 30 33 Thermal 8 | . . . . . 8 Explosive 2 | . . . . 2 . Electromagnetic 2 | . . . . . 2 Robot Hit Streak 13 | 11 13 8 . 13 13 Robot Miss Streak 4 | 1 3 2 . 2 4 Penetration Max . | . . . . . . Secondary Targets 2 | . . 2 . . . Max Gunslinging Chain 1 | . . 1 . . . Shots Hit Robots 135 | 20 6 23 . 37 49 Core Hits 63 | 8 3 11 . 16 25 Critical Kills 4 | . . . . 1 3 Critical Parts Destroyed 1 | . . . . . 1 Critical Strikes 8 | . . . . 3 5 Destroy 4 | . . . . 1 3 Blast 2 | . . . . 2 . Smash 1 | . . . . . 1 Sever 1 | . . . . . 1 Melee Attacks 61 | . . 1 2 28 30 Impact 27 | . . 1 2 24 . Slashing 34 | . . . . 4 30 Piercing . | . . . . . . Sneak Attacks 11 | . . . . 2 9 Combat Hostiles . | . . . . . . Follow-up Attacks . | . . . . . . Damage Inflicted 4605 | 225 58 219 . 1516 2587 Guns 1271 | 225 58 219 . 296 473 Cannons 367 | . . . . 113 254 Explosions 957 | . . . . 421 536 Melee 1909 | . . . . 686 1223 Ramming 6 | . . . . . 6 Kinetic 1384 | 225 58 219 . 409 473 Thermal 493 | . . . . . 493 Explosive 421 | . . . . 421 . Electromagnetic 297 | . . . . . 297 Impact 585 | . . . . 490 95 Slashing 1419 | . . . . 196 1223 Piercing . | . . . . . . Highest Corruption 23 | . . . . 10 23 Average Corruption 14 | . . . . 9 17 Corruption Purged . | . . . . . . Corruption Blocked . | . . . . . . Effects 35 | . . . . 11 24 Message Errors 8 | . . . . 3 5 Matter Fused 4 | . . . . . 4 Heat Flow Errors 5 | . . . . 1 4 Energy Discharges 9 | . . . . 4 5 Parts Fused 1 | . . . . 1 . Data Loss (minor) 5 | . . . . 2 3 Misdirections 1 | . . . . . 1 Weapon Failures 2 | . . . . . 2 Overload Shots . | . . . . . . Overflow Damage 477 | . . . . 40 437 Projectiles 2 | . . . . . 2 Explosions 184 | . . . . 3 181 Melee 291 | . . . . 37 254 Knockbacks 4 | . . . . 4 . Impact 1 | . . . . 1 . Kinetic 3 | . . . . 3 . Secondary . | . . . . . . Self-Inflicted Damage 100 | . . . . 100 . Shots 2 | . . . . 2 . Rammed . | . . . . . . Targets Rammed 1 | . . . . . 1 Kicked 1 | . . . . . 1 Crushed . | . . . . . . Highest Temperature 254 | . 12 . . 254 189 Average Temperature 77 | . 9 . . 86 78 Received Heat Transfer 1434 | . 12 84 . 333 1005 Siege Activations . | . . . . . . Martial Activations . | . . . . . . Shielding Activations . | . . . . . . Robots Disrupted . | . . . . . . Combat Hostiles . | . . . . . . Robots Corrupted . | . . . . . . Combat Hostiles . | . . . . . . Parts Fried 1 | . . . . . 1 Impact Corruptions . | . . . . . . Robots Melted 1 | . . . . . 1 Combat Hostiles 1 | . . . . . 1 Parts Melted 1 | . . . . . 1 Heat Transferred 511 | . . . . . 511 Parts Sabotaged . | . . . . . . Parts Stolen . | . . . . . . Parts Stripped . | . . . . . . Power Chain Reactions . | . . . . . . Alert | -11 -10 -10 -9 -6 -5 ------- Run | Yrd Mat Sub Scr Fac Fac Maximum Alert Level 1 | . . . . . 1 Low Security (%) 85 | 100 100 . . 100 72 Level 1 14 | . . . . . 27 Level 2 . | . . . . . . Level 3 . | . . . . . . Level 4 . | . . . . . . Level 5 . | . . . . . . High Security . | . . . . . . Max Security . | . . . . . . Peak Influence 243 | 15 30 . . 114 243 Initial 7 | . . . . . 7 Average 56 | 3 2 . . 36 91 Influence Increases 1034 | 30 30 60 . 215 699 Destroy 0b10 Robot/C 520 | . 20 60 . 140 300 Destroy 0b10 Robot/NC 90 | 30 . . . 10 50 Destroy Leader 112 | . 10 . . 20 82 Allied During Kill 33 | . . . . . 33 Disable Machine 105 | . . . . 30 75 Destroy Structure 99 | . . . . 15 84 Lose Combat Pursuer 75 | . . . . . 75 Influence Decreases 934 | 30 30 60 . 200 614 Entered New Map 8 | . . . . . 8 Time Decay 486 | 30 30 60 . 120 246 Lost Part 340 | . . . . 80 260 Lost Ally 100 | . . . . . 100 Squads Dispatched 15 | . 1 . . 4 10 Investigation 7 | . . . . 2 5 Extermination 2 | . . . . 1 1 Reinforcement 6 | . 1 . . 1 4 Assault . | . . . . . . Garrison . | . . . . . . Intercept . | . . . . . . Searches Triggered . | . . . . . . Construction Impeded 1 | . . . . 1 . Haulers Reinforced . | . . . . . . Active Scanning Responses . | . . . . . . Cargo Convoy Interrupts . | . . . . . . Stealth | -11 -10 -10 -9 -6 -5 --------- Run | Yrd Mat Sub Scr Fac Fac Distress Signals 1 | . . . . . 1 Communications Jammed . | . . . . . . Distress Signals . | . . . . . . Times Spotted 52 | . 6 5 2 7 32 Peak Tracking Total 12 | . 3 3 2 6 12 Tactical Retreats 2 | . . . . . 2 Traps | -11 -10 -10 -9 -6 -5 ------- Run | Yrd Mat Sub Scr Fac Fac Traps Triggered 1 | . . . . 1 . Indirectly . | . . . . . . Trap Hack Attempts . | . . . . . . Triggered . | . . . . . . Disarmed . | . . . . . . Reprogrammed . | . . . . . . Reused . | . . . . . . Traps Extracted . | . . . . . . Installed . | . . . . . . Triggered . | . . . . . . Machines | -11 -10 -10 -9 -6 -5 ---------- Run | Yrd Mat Sub Scr Fac Fac Machines Disabled 8 | . . . 1 2 5 Max in Single Turn 4 | . . . 1 2 4 Machines Repaired . | . . . . . . Machines Dismantled . | . . . . . . Machines Sabotaged . | . . . . . . Overloaded Fab Kills . | . . . . . . Hacking | -11 -10 -10 -9 -6 -5 --------- Run | Yrd Mat Sub Scr Fac Fac Machines Accessed 14 | . 1 . 3 2 8 Terminals 2 | . 1 . . . 1 Fabricators . | . . . . . . Repair Stations . | . . . . . . Recycling Units 7 | . . . . 2 5 Scanalyzers 2 | . . . . . 2 Garrison Access . | . . . . . . Total Hacks 33 | . 1 . 11 5 16 Successful 17 | . . . 11 1 5 Failed 15 | . 1 . . 4 10 Catastrophic 5 | . 1 . . 1 3 Database Lockouts 1 | . . . . . 1 Manual 18 | . 1 . . 5 12 Terminals 2 | . 1 . . . 1 Fabricators . | . . . . . . Repair Stations . | . . . . . . Recycling Units 16 | . . . . 5 11 Scanalyzers 4 | . . . . . 4 Garrison Access . | . . . . . . Terminal Hacks 11 | . . . 11 . . Record 4 | . . . 4 . . Robot Analysis 6 | . . . 6 . . Proto ID Catalog 1 | . . . 1 . . Fabricator Hacks . | . . . . . . Repair Station Hacks . | . . . . . . Recycling Unit Hacks . | . . . . . . Scanalyzer 2 | . . . . . 2 Retrieve Study 2 | . . . . . 2 Garrison Access Hacks . | . . . . . . Unauthorized Hacks 4 | . . . . 1 3 Terminals . | . . . . . . Fabricators . | . . . . . . Repair Stations . | . . . . . . Recycling Units 4 | . . . . 1 3 Fedlink 3 | . . . . 1 2 Scrapoids 1 | . . . . . 1 Scanalyzers . | . . . . . . Garrison Access . | . . . . . . Data Cores Recovered . | . . . . . . Used . | . . . . . . Hacking Detections 7 | . 1 . . 2 4 Full Trace Events 3 | . . . . 1 2 Feedback Events . | . . . . . . Feedback Blocked . | . . . . . . Robot Schematics Acquired . | . . . . . . Robots Built . | . . . . . . Authchips . | . . . . . . Time . | . . . . . . Total Robot Build Rating . | . . . . . . Part Schematics Acquired . | . . . . . . Parts Built . | . . . . . . Authchips . | . . . . . . Time . | . . . . . . Total Part Build Rating . | . . . . . . Part Studies Acquired 2 | . . . . . 2 Parts Repaired . | . . . . . . Time . | . . . . . . Parts Recycled . | . . . . . . Recycled Matter . | . . . . . . Retrieved Matter . | . . . . . . Retrieved Components . | . . . . . . Parts Scanalyzed . | . . . . . . Part Schematics Acquired . | . . . . . . Parts Damaged . | . . . . . . Bothacking | -11 -10 -10 -9 -6 -5 ------------ Run | Yrd Mat Sub Scr Fac Fac Used RIF Installer . | . . . . . . Robots Hacked . | . . . . . . Non-combat . | . . . . . . Combat . | . . . . . . Robot Hacks Applied . | . . . . . . Relay Couplers Released . | . . . . . . Fabnet Peak Effective % . | . . . . . . Robots Rewired . | . . . . . . Allies Hacked . | . . . . . . Hacks Repelled . | . . . . . . Allies | -11 -10 -10 -9 -6 -5 -------- Run | Yrd Mat Sub Scr Fac Fac Total Allies 5 | . . . . . 5 Largest Group 5 | . . . . . 5 Highest-Rated Group 238 | . . . . . 238 Highest-Rated Ally 50 | . . . . . 50 Initial UFD Resources 36 | . . . . 22 36 Total Orders . | . . . . . . Ally Attacks 38 | . . . . . 38 Total Damage 871 | . . . . . 871 Kills 4 | . . . . . 4 Allies Corrupted . | . . . . . . Allies Melted . | . . . . . . Intel | -11 -10 -10 -9 -6 -5 ------- Run | Yrd Mat Sub Scr Fac Fac Active Infowar (turns) 4219 | 23 310 581 2438 140 727 Optics 680 | . . . . . 680 Sensors 67 | . . . . . 67 Terrain 140 | . . . . 140 . Seismic 3473 | 23 310 581 2438 121 . Machine Analysis 656 | . . . . . 656 Robot Analysis Total 6 | . . . 6 . . Derelict Logs Recovered . | . . . . . . Drone Launches . | . . . . . . Drone Recoveries . | . . . . . . Exploration | -11 -10 -10 -9 -6 -5 ------------- Run | Yrd Mat Sub Scr Fac Fac Turns Passed 4758 | 120 310 581 2465 393 889 Spaces Moved 2431 | 42 91 302 1334 152 510 Core 42 | 5 . . . 12 25 Treads 1661 | 37 91 302 1229 2 . Legs 479 | . . . . 26 453 Wheels 223 | . . . 105 86 32 Hover 26 | . . . . 26 . Flight . | . . . . . . Fastest Speed 50 | 50 160 160 105 120 50 Average Speed 150 | 146 160 160 155 166 123 Slowest Speed 550 | 160 160 160 160 550 500 Overloaded Moves . | . . . . . . Propulsion Burnouts . | . . . . . . Robots Hopped . | . . . . . . Potential Cave-ins . | . . . . . . Cave-ins Triggered . | . . . . . . Exploration Rate (%) 26 | 3 16 24 88 4 21 Regions Visited 5 Branch Regions 2 Pre-discovered Areas 2 | . . . 1 . 1 Known Exits Taken . | . . . . . . Unknown Exits Taken 5 | 1 1 1 1 1 . Scrap Searched 4 | . . . 4 . . Spaces Dug 6 | . . . 1 1 4 Terrain Destroyed 66 | . . . 1 25 40 Melee 6 | . . . 1 1 4 Projectile 8 | . . . . 5 3 AOE 52 | . . . . 19 33 Terrain Rammed . | . . . . . . Walls Destroyed . | . . . . . . Machines Disabled . | . . . . . . Actions | -11 -10 -10 -9 -6 -5 --------- Run | Yrd Mat Sub Scr Fac Fac Total 3309 | 74 245 371 1728 228 663 Wait 583 | 9 145 48 353 . 28 Move 2426 | 41 90 301 1333 151 510 Hop . | . . . . . . Pick Up 37 | 4 4 1 16 1 11 Fast Attach 38 | 7 . . . 7 24 Attach 19 | . . . 1 12 6 Detach 6 | . . . . 2 4 Swap 23 | . . 2 8 3 10 Drop 22 | . . 2 15 2 3 Fire 93 | 13 6 16 . 22 36 Melee 61 | . . 1 2 28 30 Ram . | . . . . . . Kick 1 | . . . . . 1 Crush . | . . . . . . Escape Stasis . | . . . . . . Rewire . | . . . . . . Trap . | . . . . . . Miscellaneous . | . . . . . . Route ------- -11/Scrapyard -10/Materials -10/Subcaves -9/Scraptown -6/Factory -5/Factory History --------- Turn | Location | Event 12 | -11/Scrapyard | Discovered new exit (range 15) 121 | -11/Scrapyard | Entered Materials 312 | -10/Materials | Build established: Mutant 415 | -10/Materials | Discovered new exit (range 9) 431 | -10/Materials | Entered Subcaves 432 | -10/Subcaves | Approached by a straggling Scientist 769 | -10/Subcaves | Shifting Twisted Machinery released Sub. Power Source 810 | -10/Subcaves | Shifting Twisted Machinery released Mak. Hammer 1012 | -10/Subcaves | Entered Scraptown 1065 | -9/Scraptown | Learned location of Extension (-5) 1345 | -9/Scraptown | Visited Comm Corps 1417 | -9/Scraptown | Visited TADAMA 1470 | -9/Scraptown | Visited Fellowship of the Rings 1814 | -9/Scraptown | Heard Great Nut preacher, LISTEN AND RECITE! 1864 | -9/Scraptown | Visited CPS Storage 1902 | -9/Scraptown | Visited Artisan Demo Area 1968 | -9/Scraptown | Visited The Evicted 2022 | -9/Scraptown | Visited Assassins FH 2068 | -9/Scraptown | Visited UFD Registry 2073 | -9/Scraptown | Registered with UFD as "Lasernade" 2134 | -9/Scraptown | Visited Junk Repository 2244 | -9/Scraptown | Visited Curators Association 2267 | -9/Scraptown | Visited DA-N13 Charitable Foundation 2281 | -9/Scraptown | Found DCF Scrap (27 items) 2427 | -9/Scraptown | Visited Scrapoid Pod Storage 2435 | -9/Scraptown | Found Scrapoid Pod 2690 | -9/Scraptown | Visited Abandonware Association 2712 | -9/Scraptown | Learned abandonware demo "POISON.EXE" 2747 | -9/Scraptown | Visited Infowarlord's Domain 2765 | -9/Scraptown | Found Exp. Terrain Scanner 2796 | -9/Scraptown | Visited Analyses Database 2824 | -9/Scraptown | Visited Science Guys 2894 | -9/Scraptown | Visited Junk Repository 2956 | -9/Scraptown | Visited Science Testing Area 3034 | -9/Scraptown | Met Optimus 3034 | -9/Scraptown | Accepted into 0bPrime 3434 | -9/Scraptown | Civil war broke out across Scraptown 3440 | -9/Scraptown | Found Voltaic Drivehammer 3472 | -9/Scraptown | Discovered new exit (range 5) 3477 | -9/Scraptown | Entered Factory 3477 | -6/Factory | Evolved 8 slots: Power x1, Propulsion x2, Utility x5 3536 | -6/Factory | Discovered new exit (range 11) 3603 | -6/Factory | Loaded intel: 8 recycling unit locations 3618 | -6/Factory | System corruption reached 10% 3676 | -6/Factory | Lost 11 parts (2p5n2u2w) 3780 | -6/Factory | Core integrity fell below 50% 3836 | -6/Factory | Lost 4 parts (2n2w) 3870 | -6/Factory | Entered another Factory area 3870 | -5/Factory | Evolved 2 slots: Propulsion x1, Utility x1 4124 | -5/Factory | Central database locked down 4188 | -5/Factory | Loaded intel: 8 recycling unit locations 4188 | -5/Factory | Learned location of Protoforge (-2) 4277 | -5/Factory | Build established: Scavenger-Mutant 4418 | -5/Factory | System corruption reached 10% 4468 | -5/Factory | Lost 8 parts (2p5n1u) 4700 | -5/Factory | Scrapoid reinforcements arrived 4706 | -5/Factory | Core integrity fell below 50% 4734 | -5/Factory | Lost 11 parts (2p5n2u2w) 4749 | -5/Factory | Core integrity fell below 20% 4759 | -5/Factory | Destroyed by H-66 Slayer with Heavy Assault Rifle Last Messages --------------- transfer corridor. 04746_ K-01 Serf collects debris. 04747_ Lrg. Storage Unit destroyed. 04747_ K-01 Serf cleans the Recycling Unit. 04748_ Extracted 10 matter. 04748_ Penetrated by Slug. 04748_ U-05 Engineer builds a Wall. 04748_ K-01 Serf cleans the Matter Pump. 04749_ K-01 Serf collects debris. 04749_ Matter Pump disabled. 04750_ Machine Analyzer destroyed. 04751_ Connecting with Recycling Unit... 04751_ ALERT: Suspicious activity at Recycling Unit F001. Dispatching Investigation squad. 04751_ Matter Pump disabled. 04752_ K-01 Serf collects debris. 04752_ Penetrated by Slug. 04753_ K-01 Serf cleans the Recycling Unit. 04756_ Slug penetrates Wall. 04759_ Penetrated by Slug. Map ----- +----------------------------------------------------+ | ?????????????????# ######### # """ """ | | ?????????????????# ^ # | | ?????????????????# ####+######## | | ?????????????????# #???????????? | | ?????????????????# ^ #???????????? | | ?????????????????# ^ #???????????? | | ?????????????????######## #???????????? | | ????????????????????????# ] #### ##?????? | | ????????????????????????# ]!! ?????? | | ????????????????????????# | ?????? | | ????????????????????????#""" ?????? | | ????????????????????????#"Y %"" """ ?????? | | ????????????????????????#""" """ """ ?????? | | ???????????############## """ """ ??????? | | ???????????# # h ??????? | | ???????????# ! [ # """ """ """ """???????? | | ???????????# + ""% """ """?"""???????? | | ???????????# # """ """ """?"""???????? | | ???????????+ """" """" # h ????????????? | | ?????????????"""" """" # ??????????????? | | ?????????????"""" """" [# #####?T????????????? | | ?????????????"""" """" # #??????????????????? | | ?????????????"""" """" # #??????????????????? | | ?????????????"""" """" # #??????????????????? | | ???????????# + #??????????????????? | | ???????????# ! #@ k#??????????????????? | | ???????????############## #??????????????????? | | ????????????????????????# #??????????????????? | | ????????????????????????# #??????????????????? | | ????????????????????????# #??????????????????? | | ????????????????????????+ #??????????????????? | | ????????????????????????# #??????????????????? | | ????????????????????????# #??????????????????? | | ????????????????????????# #??????????????????? | | ????????????????????????? #??????????????????? | | ????????????????????????? #??????????????????? | | ????????????????????????? #??????????????????? | | ????????????????????????? #??????????????????? | | ????????????????????????? #??????????????????? | | ????????????????????????? ???????????????????? | | ????????????????????????? ?????????????????????? | | ?????????????????????????????????????????????????? | | ?????????????????????????????????????????????????? | | ?????????????????????????????????????????????????? | | ?????????????????????????????????????????????????? | | ?????????????????????????????????????????????????? | | ?????????????????????????????????????????????????? | | ?????????????????????????????????????????????????? | | ?????????????????????????????????????????????????? | | ?????????????????????????????????????????????????? | +----------------------------------------------------+ Best States ------------- Heat Dissipation 40 Energy Generation 33 Energy Capacity 530 Matter Stores 300 Matter Capacity 300 Sight Range 22 Robot Scan Range 15 Terrain Scan Range 30 Terrain Scan Density 85 Armor Coverage 225 Power Shielding 33 Evasion (%) 55 Target Analysis 6 Armor Integrity Analysis 30 Recoil Reduction 2 Salvage Targeting 6 Item Schematics ----------------- None Robot Schematics ------------------ None Fabricated ------------ Nothing Repaired ---------- Nothing Studied --------- Arm. Leg | -5/Factory | Hacked Flexi-carbon Leg | -5/Factory | Hacked Alien Tech Used ----------------- None Achievements -------------- Thor Challenges ------------ None Game ------ Seed FactoryDimensionalFlakker Manual? 0 Play Time 00:35:54 Cumulative 165.6 hours Start 2026.04.10 @ 11:23:44 End 2026.04.10 @ 11:59:15 Sessions 1 Manual Loads 0 Difficulty Rogue Special Mode None Game No. 236 Rogue 236 Adventurer 0 Explorer 0 Win Type - Total 2 Types 1/0/0/1/0/0/0/0/0/0 Lore% 70 Gallery% 58 Achievement% 45 Wizard Run 0 Options --------- Layout 2 ASCII 0 Keyboard 0 Movement Mouse Keybinds 0 Fullscreen 1 Font 24/Smallcaps Map View 50x44 Zoom Use 0% Tactical HUD 1 Map Filters NONE Filters NONE Steam 1 RUN: 4940a8fe-4089-4055-ac81-db66934e6a7a